Cogmind - Beta 15 @@@ ROGUE MODE // 2025.07.06 @ 18:53:55 Player: LightKnight Result: Destroyed by Alpha 7 with Multirail Performance ------------- Evolutions (8) 4000 Regions Visited (28) 5600 Robots Destroyed (329) 1645 Value Destroyed (14603) 14603 Prototype IDs (75) 1500 Alien Tech Used (12) 2400 Bonus (16292) 16292 TOTAL SCORE: 46040 Bonus ------- High Alert Combat Kills 975 Follower Combat Kills 432 Entered DSFs 500 Met Data Miner 300 Acquired ECA 300 Met Zhirov 300 Met Warlord at Base 500 MAIN.C Attacked Warlord 500 Warlord Defense Kills 1602 Found Hidden Lab 3000 Used Core Reset Matrix 3000 Met Warlord at Research 2000 Pursued by Intercept 1000 Met Sigix 2000 Friendly Fire -117 Cogmind --------- Core Integrity 0/1450 Matter 180/300 Energy 99/100 System Corruption 0% Temperature Cool (0) Movement Core (100) Ox1 Location -2/Section 7 Parts ------- > --- POWER (2) -------- (None) > --- PROPULSION (6) --- (None) > --- UTILITY (12) ----- Experimental Signal Interpreter Advanced Hacking Suite Advanced Hacking Suite Improved System Shield Improved System Guard Spacefold Activator > --- WEAPON (4) ------- Plasma Lance > --- INVENTORY (5) ---- Sigix Sheargun Sigix Containment Pod Peak State ------------ > --- POWER ------------ Light Antimatter Reactor Light Quantum Reactor > --- PROPULSION ------- Xenon Bombardment Thruster Xenon Bombardment Thruster Diametric Drive Q-thruster Q-thruster Q-thruster > --- UTILITY ---------- Advanced Gravity Neutralizer Experimental Signal Interpreter Advanced Hacking Suite Advanced Hacking Suite Advanced Hacking Suite Improved System Shield Improved System Shield Improved System Shield Improved System Guard Microwarp Drive > --- WEAPON ----------- Advanced Remote Datajack Powered Hammer Plasma Lance > --- INVENTORY -------- Transdimensional Reconstructor Transdimensional Reconstructor Vortex Driver Sigix Containment Pod [Rating: 180] Favorites ----------- Power Enhanced Nuclear Core Engine Improved Deuterium Engine Power Core Enhanced Nuclear Core Reactor Antimatter Reactor Propulsion Medium Treads Treads Medium Treads Leg Improved Thunder Leg Hover Unit Linear Gravjet Flight Unit Xenon Bombardment Thruster Utility Advanced Cooling System Device Advanced Cooling System Storage High-capacity Storage Unit Processor Launcher Guidance Computer Hackware Improved System Shield Protection Powered Armor Artifact Spacefold Activator Weapon Plasma Cannon Energy Gun High-powered Field Laser Energy Cannon Plasma Cannon Ballistic Gun Enhanced Autogun Launcher Smartbomb Launcher Special Weapon Advanced Remote Datajack Impact Weapon Powered Hammer Piercing Weapon Plasma Lance Special Melee Weapon Datajack Build | -11 -10 -10 -10 -9 -8 -7 -7 -7 -7 -6 -6 -6 -5 -5 -5 -5 -4 -4 -4 -4 -4 -3 -3 -3 -3 -2 -2 -2 ------- Run | Yrd Mat Min Exi Min Mat Fac Low Low Dat Pro Fac DSF Fac Upp Upp War Pro Fac Upp Upp Zhi Pro Res Arm Lab Res Qua Sec Slots Evolved 16 | . . . . . 4 2 . . . . 2 . 2 . . . . 2 . . . . 2 . . 2 . . Power 1 | . . . . . . 1 . . . . . . . . . . . . . . . . . . . . . . Propulsion 4 | . . . . . 1 1 . . . . . . . . . . . 1 . . . . . . . 1 . . Utility 9 | . . . . . 2 . . . . . 2 . 1 . . . . 1 . . . . 2 . . 1 . . Weapon 2 | . . . . . 1 . . . . . . . 1 . . . . . . . . . . . . . . . Parts Attached 231 | . 8 4 1 1 26 43 1 1 . 6 . 9 8 3 1 5 1 23 4 1 5 . 3 5 1 63 4 4 Power 20 | . . 1 . . 1 6 . . . . . 1 1 1 . 1 . 2 . . 1 . 1 . . 4 . . Engine 10 | . . 1 . . 1 5 . . . . . 1 1 . . 1 . . . . . . . . . . . . Core 4 | . . . . . . 1 . . . . . . . 1 . . . 1 . . . . . . . 1 . . Reactor 6 | . . . . . . . . . . . . . . . . . . 1 . . 1 . 1 . . 3 . . Propulsion 52 | . 2 . . . 7 14 . . . 2 . 3 2 . . . . 6 . . 1 . 1 3 . 10 1 . Treads 41 | . 2 . . . 7 14 . . . 2 . 3 2 . . . . 6 . . . . 1 2 . 2 . . Leg 1 | . . . . . . . . . . . . . . . . . . . . . . . . 1 . . . . Wheel . | . . . . . . . . . . . . . . . . . . . . . . . . . . . . . Hover 2 | . . . . . . . . . . . . . . . . . . . . . 1 . . . . 1 . . Flight 8 | . . . . . . . . . . . . . . . . . . . . . . . . . . 7 1 . Utility 96 | . 2 1 . . 10 10 1 . . 2 . 4 3 1 . 1 . 6 3 1 3 . . . 1 42 3 2 Device 60 | . . . . . 5 8 . . . 2 . 4 2 1 . 1 . 5 2 1 2 . . . . 27 . . Storage 4 | . 1 . . . 1 . . . . . . . . . . . . . . . . . . . 1 . 1 . Processor 17 | . 1 1 . . 3 1 1 . . . . . . . . . . . 1 . . . . . . 8 1 . Hackware 8 | . . . . . . . . . . . . . 1 . . . . 1 . . . . . . . 5 1 . Protection 5 | . . . . . 1 1 . . . . . . . . . . . . . . 1 . . . . 2 . . Artifact 2 | . . . . . . . . . . . . . . . . . . . . . . . . . . . . 2 Weapon 63 | . 4 2 1 1 8 13 . 1 . 2 . 1 2 1 1 3 1 9 1 . . . 1 2 . 7 . 2 Energy Gun 15 | . 2 2 . . . 6 . . . . . . . . 1 1 1 1 . . . . . . . . . 1 Energy Cannon 27 | . 1 . . . 1 6 . 1 . 2 . 1 2 1 . 2 . 6 . . . . 1 1 . 1 . 1 Ballistic Gun 8 | . 1 . . 1 6 . . . . . . . . . . . . . . . . . . . . . . . Ballistic Cannon . | . . . . . . . . . . . . . . . . . . . . . . . . . . . . . Launcher 7 | . . . . . 1 1 . . . . . . . . . . . 1 1 . . . . 1 . 2 . . Special Weapon 2 | . . . . . . . . . . . . . . . . . . . . . . . . . . 2 . . Impact Weapon 1 | . . . . . . . . . . . . . . . . . . . . . . . . . . 1 . . Slashing Weapon . | . . . . . . . . . . . . . . . . . . . . . . . . . . . . . Piercing Weapon 1 | . . . . . . . . . . . . . . . . . . . . . . . . . . 1 . . Special Melee Weapon 2 | . . . 1 . . . . . . . . . . . . . . 1 . . . . . . . . . . Unidentified Prototypes 28 | . . . . . 4 2 . . . . . . 2 . . 2 . 2 . 1 5 . . 1 1 8 . . Parts Lost 74 | . . 2 . . 3 16 . . . 5 . 1 1 . . 2 1 5 . 1 . . 6 19 . . . 12 Power 6 | . . . . . . . . . . 1 . . . . . 1 . . . . . . . 2 . . . 2 Propulsion 27 | . . . . . 2 8 . . . 2 . 1 1 . . . . 3 . . . . 1 5 . . . 4 Utility 20 | . . . . . 1 5 . . . 1 . . . . . . . . . 1 . . 3 4 . . . 5 Weapon 21 | . . 2 . . . 3 . . . 1 . . . . . 1 1 2 . . . . 2 8 . . . 1 Highest Loss Streak 12 | . . 1 . . 2 4 . . . 1 . 1 1 . . 2 1 4 . 1 . . 5 12 . . . 7 To Critical Strikes 2 | . . . . . . . . . . . . . . . . . . 1 . . . . . 1 . . . . Average Backups 17 | . 13 14 14 15 14 16 16 18 19 18 18 17 17 18 19 19 19 18 19 19 19 20 17 14 3 4 3 2 Power 1 | . 1 1 2 2 3 2 3 3 3 2 3 1 1 2 2 1 1 1 1 1 1 1 1 1 . . . . Propulsion 2 | . 5 5 4 4 2 4 1 1 1 . 1 2 2 2 2 3 3 1 3 3 3 3 2 . . . . . Utility 4 | . 1 2 3 3 4 5 6 7 7 7 6 6 5 5 5 5 5 4 2 3 3 4 2 4 1 . . . Weapon 6 | . 5 4 4 4 5 4 5 7 7 6 7 7 7 7 7 7 8 8 9 9 9 9 8 4 . 1 1 . Tool/Special . | . . . . . . . . . . . . . . . . . . . . . . . . . . . . . Unused Backups 59 | . 7 2 2 3 13 6 . 2 . 1 . 2 1 1 1 1 1 3 2 1 1 . . 5 . 1 2 1 Power 9 | . 1 . . 1 2 2 . . . . . 1 . . . . . . 1 . . . . . . . 1 . Propulsion 9 | . 2 2 2 . 1 2 . . . . . . . . . . . . . . . . . . . . . . Utility 17 | . 2 . . . 1 1 . . . 1 . 1 1 . 1 . . 2 1 . . . . 5 . 1 . . Weapon 22 | . 2 . . 2 9 1 . 2 . . . . . 1 . 1 1 1 . 1 . . . . . . . 1 Tool/Special 2 | . . . . . . . . . . . . . . . . . . . . . 1 . . . . . 1 . Average Slot Usage (%) 94 | . 96 100 100 100 98 99 100 100 100 99 86 99 99 99 100 99 99 94 89 87 88 89 88 62 3 51 93 60 Engine 5 | . 14 14 14 14 8 12 7 7 7 6 6 6 5 4 . . 5 1 . . . . . . . . . . Core 3 | . . . . . . 2 7 7 7 7 6 6 5 5 11 10 5 6 5 5 3 . . 1 . . . . Reactor 1 | . . . . . . . . . . . . . . . . . . 2 5 5 6 10 9 5 . 4 8 3 Treads 24 | . 27 28 28 28 26 29 30 30 30 29 26 25 22 23 23 23 23 21 21 21 21 21 18 14 . . . . Device 15 | . . . . . 7 17 7 7 7 7 6 19 22 23 23 23 23 28 26 24 25 26 30 16 . 7 4 3 Storage 7 | . 19 14 14 14 9 7 7 7 7 7 6 6 5 5 5 5 5 5 5 5 5 5 4 3 1 . . . Processor 9 | . 5 14 14 14 10 2 14 15 15 15 13 13 11 11 11 11 11 7 9 10 10 10 8 3 . 10 14 8 Energy Gun 5 | . 21 14 2 14 . 13 7 11 15 6 . . . . 4 5 4 3 . . . . . . . . . . Energy Cannon 11 | . 5 14 14 4 . 9 7 7 7 11 13 19 22 23 17 16 17 16 11 10 10 10 13 11 1 . . . Ballistic Gun 2 | . 1 . . 9 25 . . . . . . . . . . . . . . . . . . . . . . . Launcher 1 | . . . . . . . 6 2 . 2 6 . . . . . . . 4 5 5 5 1 1 . . . . Peak Build Rating 180 | . 12 14 14 17 38 60 63 66 66 66 61 75 86 90 92 96 89 128 127 123 128 127 140 123 17 154 162 180 Average Rating 74 | . 10 12 14 15 34 51 61 64 66 62 61 69 83 86 91 90 88 114 123 120 124 127 135 96 10 78 150 115 On Entrance 69 | 6 6 12 14 14 17 38 58 63 66 66 61 61 72 86 90 92 86 88 128 123 123 127 127 103 3 4 142 146 Naked Turns 73 | . . . . . . . . . . . . . . . . . . . . . . . . 18 30 25 . . Heaviest Build 146 | 13 36 36 36 36 70 89 77 78 78 88 88 91 101 103 106 102 101 139 139 109 113 113 144 146 21 57 46 46 Greatest Support 153 | 20 40 40 40 40 60 112 112 112 112 112 104 104 104 104 104 104 104 153 151 151 151 151 152 152 3 70 59 59 Greatest Overweight (x) 16 | . . . . . 16 1 . . . . . 1 . . 1 . . 1 . . . . . 3 6 1 . 3 Average Overweight (x) . | . . . . . . . . . . . . . . . . . . . . . . . . . . . . . Largest Inventory Capacity 20 | . 15 15 15 15 20 20 20 20 20 20 20 20 20 20 20 20 20 20 20 20 20 20 20 20 5 5 20 5 Average Capacity 18 | . 14 15 15 15 15 17 20 20 20 20 20 20 20 20 20 20 20 20 20 20 20 20 20 19 5 5 5 5 Most Carried 20 | . 15 15 15 15 16 20 19 20 20 20 19 20 20 20 20 20 20 20 20 20 20 20 19 19 5 5 5 5 Average Carried 17 | . 13 14 14 14 14 16 16 19 20 19 19 18 18 19 19 19 19 18 19 19 19 20 18 15 4 4 4 4 Final Capacity 20 | 8 15 15 15 15 20 20 20 20 20 20 20 20 20 20 20 20 20 20 20 20 20 20 20 5 5 5 5 5 Final Carried 20 | 6 15 15 15 15 16 15 19 20 20 19 19 20 19 20 20 19 19 20 20 20 20 20 18 5 5 5 5 3 Class Distribution -------------------- 30% | Skirmisher 18% | Gunner 13% | Mutant 9% | Commander-Skirmisher 8% | Scavenger-Skirmisher 5% | Scavenger-Gunner 3% | Pyromaniac-Skirmisher Dominant Class ---------------- Mutant | -10/Materials Mutant | -10/Mines Mutant | -10/Exiles Mutant | -9/Mines Gunner | -8/Materials Scavenger-Gunner | -7/Factory Skirmisher | -7/Lower Caves Skirmisher | -7/Lower Caves Skirmisher | -7/Data Miner Skirmisher | -6/Proximity Caves Commander-Skirmisher | -6/Factory Commander-Gunner | -6/DSF Commander-Skirmisher | -5/Factory Commander-Skirmisher | -5/Upper Caves Scavenger-Skirmisher | -5/Upper Caves Scavenger-Skirmisher | -5/Warlord Pyromaniac-Skirmisher | -4/Proximity Caves Gunner | -4/Factory Skirmisher | -4/Upper Caves Skirmisher | -4/Upper Caves Skirmisher | -4/Zhirov Skirmisher | -3/Proximity Caves Gunner | -3/Research Tank | -3/Armory Mutant | -3/Lab Scavenger-Scout | -2/Research Wizard-Sprinter | -2/Quarantine Hacker-Mutant | -2/Section 7 Resources | -11 -10 -10 -10 -9 -8 -7 -7 -7 -7 -6 -6 -6 -5 -5 -5 -5 -4 -4 -4 -4 -4 -3 -3 -3 -3 -2 -2 -2 ----------- Run | Yrd Mat Min Exi Min Mat Fac Low Low Dat Pro Fac DSF Fac Upp Upp War Pro Fac Upp Upp Zhi Pro Res Arm Lab Res Qua Sec Matter Collected 6029 | 181 135 33 . 54 1558 759 45 10 . 390 . 125 66 113 115 62 143 457 56 165 110 258 85 139 175 795 . . Remotely . | . . . . . . . . . . . . . . . . . . . . . . . . . . . . . Salvage Created 16125 | . 760 132 . 141 2097 3631 245 187 . 2261 . 429 363 112 376 988 142 1915 307 175 391 578 234 622 . . . 39 Parts 633 | . 48 8 . 8 104 152 10 7 . 58 . 17 14 4 9 42 3 86 3 9 4 11 9 24 . . . 3 Haulers Intercepted 7 | . 2 . . . 3 . . . . . . . 1 . . . . 1 . . . . . . . . . . Recyclers Shooed 3 | . . . . 1 . 1 . . . . . . . . . . . 1 . . . . . . . . . . Parts Field Recycled . | . . . . . . . . . . . . . . . . . . . . . . . . . . . . . Retrieved Matter . | . . . . . . . . . . . . . . . . . . . . . . . . . . . . . Parts Self-Destructed 57 | . . . . . . . . 3 . 27 . . . 4 7 . 3 . 2 7 2 2 . . . . . . Prevented 31 | . . . . . . . 9 . . 18 . . . . 3 . . . 1 . . . . . . . . . Kills | -11 -10 -10 -10 -9 -8 -7 -7 -7 -7 -6 -6 -6 -5 -5 -5 -5 -4 -4 -4 -4 -4 -3 -3 -3 -3 -2 -2 -2 ------- Run | Yrd Mat Min Exi Min Mat Fac Low Low Dat Pro Fac DSF Fac Upp Upp War Pro Fac Upp Upp Zhi Pro Res Arm Lab Res Qua Sec Combat Hostiles Destroyed 271 | . 14 5 . 3 39 64 4 . . 24 . 4 7 1 5 14 2 38 1 9 . 13 4 19 . . . 1 Melee 1 | . . . . . . . . . . . . . . . . . . . . . . . . . . . . 1 Guns 79 | . 6 2 . 3 38 20 . . . 2 . . . . . . . 5 . . . . . 3 . . . . Cannons 72 | . 1 1 . . 1 21 . . . 7 . 4 2 1 3 1 1 20 . . . 1 3 5 . . . . AOE 94 | . 7 2 . . . 16 4 . . 10 . . 4 . . 11 . 11 1 9 . 12 . 7 . . . . Classes Destroyed 24 | . 8 . . . 4 4 . 2 . 1 . . . . . 1 . 1 . . . . . 2 . . . 1 Worker 7 | . . . . . . 5 . . . . . . . . . . . 2 . . . . . . . . . . Builder 7 | . 1 . . . 1 1 . . . 1 . . . . . . . 3 . . . . . . . . . . Tunneler 1 | . 1 . . . . . . . . . . . . . . . . . . . . . . . . . . . Hauler 7 | . 2 . . . 3 . . . . . . . 1 . . . . 1 . . . . . . . . . . Recycler 8 | . 1 . . . 2 1 . . . 2 . . . . . . . 2 . . . . . . . . . . Minesweeper 3 | . . . . . . . . 1 . . . . . . . . . . 2 . . . . . . . . . Mechanic 4 | . . . . . 1 2 . . . . . . . . . . . . . . . . . 1 . . . . Operator 4 | . 1 . . . 1 2 . . . . . . . . . . . . . . . . . . . . . . Watcher 16 | . 3 . . . 4 6 . . . 2 . . . . . . . 1 . . . . . . . . . . Swarmer 58 | . 3 3 . . 10 10 . . . 4 . . 5 . . . . 13 . 5 . . 1 4 . . . . Cutter 1 | . . . . . . . . . . . . . . . . . . . . . . . . . . . . 1 Saboteur 1 | . . . . . . . . . . . . . . . . . . . . . . . . 1 . . . . Grunt 103 | . 11 2 . 3 18 28 3 . . 9 . 2 1 . 1 10 . 6 1 . . 8 . . . . . . Brawler 10 | . . . . . 1 3 1 . . 2 . . . . 1 . . 2 . . . . . . . . . . Duelist 14 | . . . . . . 5 . . . 2 . . . . . . . . . . . 1 . 6 . . . . Protector 4 | . . . . . . 1 . . . 1 . . . . . 2 . . . . . . . . . . . . Sentry 24 | . . . . . 9 4 . . . 5 . . . . 1 . . 3 . . . . 1 1 . . . . Demolisher 1 | . . . . . . . . . . . . . . . . . . . . . . . . 1 . . . . Specialist 4 | . . . . . . . . . . 1 . 1 . . . . . . . . . . 2 . . . . . Hunter 28 | . . . . . 1 7 . . . . . 1 1 . 2 . 2 4 . 2 . 4 . 4 . . . . Programmer 21 | . . . . . . 6 . . . . . . . 1 . 1 . 9 . 2 . . . 2 . . . . Behemoth 1 | . . . . . . . . . . . . . . . . . . 1 . . . . . . . . . . Striker 1 | . . . . . . . . . . . . . . . . 1 . . . . . . . . . . . . Samaritan 3 | . . . . . . . . 1 . . . . . . 1 . . . . 1 . . . . . . . . Commander 1 | . . . . . . . . . . . . . . . . 1 . . . . . . . . . . . . Best Kill Streak 11 | . 5 3 . 3 6 11 4 1 . 4 . 3 5 1 2 7 2 11 1 5 . 9 2 5 . . . 1 Combat Bots Only 10 | . 3 3 . 3 6 8 4 . . 4 . 3 5 1 2 7 2 10 1 5 . 9 2 5 . . . 1 Max Kills in Single Turn 4 | . 3 1 . 1 2 3 3 1 . 4 . 1 2 1 1 3 1 2 1 4 . 3 2 3 . . . 1 Gunslinging 1 | . . . . . . 1 . . . . . . . . . . . . . . . . . . . . . . Exploded 4 | . 2 1 . . . 3 3 . . 4 . . 2 . . 3 . 2 1 4 . 3 . 3 . . . . Melee 1 | . . . . . . . . . . . . . . . . . . . . . . . . . . . . 1 Uniques/NPCs Destroyed . | . . . . . . . . . . . . . . . . . . . . . . . . . . . . . Combat | -11 -10 -10 -10 -9 -8 -7 -7 -7 -7 -6 -6 -6 -5 -5 -5 -5 -4 -4 -4 -4 -4 -3 -3 -3 -3 -2 -2 -2 -------- Run | Yrd Mat Min Exi Min Mat Fac Low Low Dat Pro Fac DSF Fac Upp Upp War Pro Fac Upp Upp Zhi Pro Res Arm Lab Res Qua Sec Hostile Shots Fired 1471 | . 28 30 . 11 117 409 . . . 243 . 12 17 2 2 42 32 156 . 8 . 18 64 114 15 7 2 142 Missed 493 | . 8 10 . 1 34 159 . . . 90 . 6 6 1 . 14 10 52 . 4 . 5 17 28 4 6 2 36 Hits 978 | . 20 20 . 10 83 250 . . . 153 . 6 11 1 2 28 22 104 . 4 . 13 47 86 11 1 . 106 Melee 41 | . . . . . . 12 . . . 1 . . . . . . . 3 . . . . . 13 . . . 12 Projectile 937 | . 20 20 . 10 83 238 . . . 152 . 6 11 1 2 28 22 101 . 4 . 13 47 73 11 1 . 94 AOE 25 | . . . . . . . . . . . . . . . . 1 . . . . . . . 21 . . . 3 Critical Strikes 35 | . 1 . . . 3 10 . . . . . . . . . 1 . 2 . . . . 3 5 . . . 10 Part Disruptions 1 | . . . . . . . . . . . . 1 . . . . . . . . . . . . . . . . Damage Taken 17283 | . 333 191 . 120 1045 3772 . . . 1318 . 72 273 20 52 681 241 1973 . 76 . 227 1072 2806 280 28 . 2703 Core 3219 | . 109 33 . 15 74 298 . . . 82 . . 13 . . 79 40 86 . . . . 79 764 232 . . 1315 Absorbed by Shields 37 | . . . . . . 37 . . . . . . . . . . . . . . . . . . . . . . Reduced by Siege Mode 25 | . . . . . . . . . . . . . . . . . . . . . . . . 25 . . . . Regen/Repaired (Parts) 274 | . . . . . 179 57 . . . . . . . . . 38 . . . . . . . . . . . . Core Remaining (%) 69 | 100 . . . 37 86 . . . . 45 . 100 . . . . 86 . . . . 92 . . 11 . . . Volleys Fired 684 | . 37 12 . 8 109 145 3 8 . 123 . 12 7 3 9 23 6 57 13 13 4 29 6 50 6 . 1 . Largest 4 | . 2 2 . 2 3 3 1 3 . 3 . 3 4 4 4 4 4 4 2 1 2 2 4 4 1 . 1 . Hottest 430 | . 101 101 . 78 146 220 36 220 . 245 . 255 330 335 346 335 335 430 215 110 215 215 425 408 100 . 100 . Shots Fired 1573 | . 63 23 . 16 324 396 3 17 . 190 . 36 19 12 26 26 23 182 25 13 8 40 24 100 6 . 1 . Gun 715 | . 60 11 . 16 314 227 . 9 . 31 . . . . 1 1 5 31 . . . . . 9 . . . . Cannon 744 | . 3 12 . . 10 154 . 8 . 142 . 36 16 12 22 3 18 140 24 3 8 22 24 80 6 . 1 . Launcher 114 | . . . . . . 15 3 . . 17 . . 3 . 3 22 . 11 1 10 . 18 . 11 . . . . Special . | . . . . . . . . . . . . . . . . . . . . . . . . . . . . . Kinetic 326 | . 11 . . 8 307 . . . . . . . . . . . . . . . . . . . . . . . Thermal 929 | . 2 . . . 10 355 . 17 . 173 . 36 12 12 18 4 23 131 24 3 8 22 24 55 . . . . Explosive 39 | . . . . . . . . . . . . . . . . . . . 1 10 . 18 . 10 . . . . Electromagnetic 220 | . 50 23 . 8 7 41 3 . . 17 . . 7 . 8 22 . 19 . . . . . 15 . . . . Entropic 59 | . . . . . . . . . . . . . . . . . . 32 . . . . . 20 6 . 1 . Robot Hit Streak 23 | . 8 12 . 7 22 20 14 18 . 23 . 8 4 4 7 9 6 16 5 4 8 14 5 17 . . . . Robot Miss Streak 8 | . 6 2 . 1 3 8 . 1 . 3 . 1 4 1 3 5 1 6 2 . . 2 2 7 . . . . Penetration Max . | . . . . . . . . . . . . . . . . . . . . . . . . . . . . . Secondary Targets 16 | . . . . . 7 2 . . . . . . . . . . . 3 . . . . 2 2 . . . . Max Gunslinging Chain 2 | . . . . . 1 1 . . . . . . . . . . . 1 . . . . 2 1 . . . . Shots Hit Robots 992 | . 42 16 4 14 224 241 2 11 . 129 . 24 8 6 14 13 18 108 17 3 4 15 14 63 . . . 2 Core Hits 612 | . 32 8 . 7 88 142 6 6 . 61 . 14 11 2 11 42 4 68 7 10 4 42 6 40 . . . 1 Critical Kills 8 | . . . . . . 1 . . . 2 . . . . 1 . . . . . . 1 1 2 . . . . Critical Parts Destroyed 1 | . . . . . . . . . . . . . . . . . . 1 . . . . . . . . . . Critical Strikes 27 | . . . . . . 11 . . . 3 . . . . 1 . . 5 . . . 1 1 5 . . . . Burn 11 | . . . . . . 10 . . . 1 . . . . . . . . . . . . . . . . . . Meltdown 8 | . . . . . . 1 . . . 2 . . . . 1 . . . . . . 1 1 2 . . . . Detonate 1 | . . . . . . . . . . . . . . . . . . 1 . . . . . . . . . . Sunder 7 | . . . . . . . . . . . . . . . . . . 4 . . . . . 3 . . . . Melee Attacks 41 | . . . 4 . . . . . . . . . . . . . . 1 . . . . . . . 1 8 27 Impact 4 | . . . . . . . . . . . . . . . . . . . . . . . . . . 1 2 1 Slashing . | . . . . . . . . . . . . . . . . . . . . . . . . . . . . . Piercing 32 | . . . . . . . . . . . . . . . . . . . . . . . . . . . 6 26 Sneak Attacks 5 | . . . 4 . . . . . . . . . . . . . . 1 . . . . . . . . . . Combat Hostiles . | . . . . . . . . . . . . . . . . . . . . . . . . . . . . . Follow-up Attacks 1 | . . . . . . . . . . . . . . . . . . . . . . . . . . . 1 . Damage Inflicted 41850 | . 1055 439 . 292 4079 8237 330 288 . 5283 . 774 729 191 706 2335 443 6906 756 1122 179 3123 522 3924 . . . 137 Guns 10430 | . 550 125 . 262 3926 3416 . 114 . 445 . . . . 18 . 72 1147 . . . . . 355 . . . . Cannons 15718 | . 48 150 . . 129 2507 . 174 . 3116 . 774 276 191 468 41 371 3329 649 . 179 579 521 2216 . . . . Explosions 15361 | . 441 162 . . . 2275 330 . . 1722 . . 409 . 220 2294 . 2401 107 1103 . 2544 . 1353 . . . . Melee 137 | . . . . . . . . . . . . . . . . . . . . . . . . . . . . 137 Ramming 204 | . 16 2 . 30 24 39 . . . . . . 44 . . . . 29 . 19 . . 1 . . . . . Kinetic 4095 | . 120 . . 147 3828 . . . . . . . . . . . . . . . . . . . . . . . Thermal 20845 | . 441 162 . . 129 5973 . 288 . 4088 . 774 339 191 420 555 443 3909 649 . 179 579 521 1205 . . . . Explosive 5157 | . . . . . . 70 . . . . . . . . . . . . 107 1103 . 2544 . 1333 . . . . Electromagnetic 8695 | . 478 275 . 115 98 2155 330 . . 1195 . . 346 . 286 1780 . 1327 . . . . . 310 . . . . Impact . | . . . . . . . . . . . . . . . . . . . . . . . . . . . . . Slashing . | . . . . . . . . . . . . . . . . . . . . . . . . . . . . . Piercing 137 | . . . . . . . . . . . . . . . . . . . . . . . . . . . . 137 Entropic 2717 | . . . . . . . . . . . . . . . . . . 1641 . . . . . 1076 . . . . Highest Corruption 6 | . . . . . . 1 . . . . . 2 . . . 3 2 6 5 . . . . 3 3 . . . Average Corruption 2 | . . . . . . 1 . . . . . 1 . . . 2 1 3 4 . . . . 2 3 . . . Corruption Purged 16 | . . . . . . 1 . . . . . 2 . . . 1 2 5 5 . . . . . . . . . Corruption Blocked . | . . . . . . . . . . . . . . . . . . . . . . . . . . . . . Effects 49 | . . . . . . 12 . . . . . 2 . . . 2 . 25 8 . . . . . . . . . Message Errors 15 | . . . . . . 1 . . . . . 1 . . . 1 . 8 4 . . . . . . . . . Matter Fused 6 | . . . . . . 4 . . . . . . . . . . . 2 . . . . . . . . . . Heat Flow Errors 9 | . . . . . . 3 . . . . . . . . . 1 . 4 1 . . . . . . . . . Energy Discharges 11 | . . . . . . 2 . . . . . 1 . . . . . 7 1 . . . . . . . . . Parts Rejected 1 | . . . . . . 1 . . . . . . . . . . . . . . . . . . . . . . Data Loss (minor) 6 | . . . . . . 1 . . . . . . . . . . . 3 2 . . . . . . . . . Data Loss (major) 1 | . . . . . . . . . . . . . . . . . . 1 . . . . . . . . . . Overload Shots . | . . . . . . . . . . . . . . . . . . . . . . . . . . . . . Overflow Damage 1012 | . . 15 . . . 72 . 7 . 130 . 30 10 24 . . . 299 138 113 9 124 . 41 . . . . Projectiles 578 | . . . . . . 45 . 7 . 96 . 30 . 24 . . . 109 138 . 9 79 . 41 . . . . Explosions 421 | . . 15 . . . 27 . . . 34 . . 10 . . . . 190 . 100 . 45 . . . . . . Melee 13 | . . . . . . . . . . . . . . . . . . . . 13 . . . . . . . . Knockbacks 1 | . . . . . . 1 . . . . . . . . . . . . . . . . . . . . . . Impact 1 | . . . . . . 1 . . . . . . . . . . . . . . . . . . . . . . Kinetic . | . . . . . . . . . . . . . . . . . . . . . . . . . . . . . Secondary . | . . . . . . . . . . . . . . . . . . . . . . . . . . . . . Self-Inflicted Damage 639 | . 98 . . . . 402 . . . 48 . . . . 46 45 . . . . . . . . . . . . Shots 17 | . 2 . . . . 7 . . . 3 . . . . 2 3 . . . . . . . . . . . . Rammed 29 | . 4 2 . 4 4 7 . . . . . . 3 . . . . 3 . 1 . . 1 . . . . . Targets Rammed 31 | . 4 2 . 4 5 8 . . . . . . 3 . . . . 3 . 1 . . 1 . . . . . Kicked . | . . . . . . . . . . . . . . . . . . . . . . . . . . . . . Crushed 2 | . . . . . 1 1 . . . . . . . . . . . . . . . . . . . . . . Highest Temperature 422 | . 167 214 . 174 238 294 . 171 . 372 . 18 234 233 212 160 98 410 144 54 10 30 422 408 . . . . Average Temperature 90 | . 63 107 . 103 65 85 . 65 . 109 . 7 118 122 90 87 63 113 60 40 7 11 176 122 . . . . Received Heat Transfer 2457 | . 126 42 . 69 369 852 . . . 339 . . 36 . . 108 . 99 . . . . 228 72 . . . 117 Effects 17 | . . 2 . . . 4 . . . 4 . . . . . . . 3 . . . . 1 3 . . . . Shutdowns 1 | . . . . . . . . . . . . . . . . . . . . . . . . 1 . . . . Energy Bleed 6 | . . . . . . . . . . 4 . . . . . . . 1 . . . . 1 . . . . . Interference 6 | . . 2 . . . 4 . . . . . . . . . . . . . . . . . . . . . . Matter Decay 1 | . . . . . . . . . . . . . . . . . . . . . . . . 1 . . . . Damage (minor) 1 | . . . . . . . . . . . . . . . . . . . . . . . . 1 . . . . Damage (major) 2 | . . . . . . . . . . . . . . . . . . 2 . . . . . . . . . . Siege Activations 3 | . . . . . . . . . . . . . . . . . . . . . . . . 3 . . . . Total Turns 31 | . . . . . . . . . . . . . . . . . . . . . . . . 31 . . . . Longest Duration 14 | . . . . . . . . . . . . . . . . . . . . . . . . 14 . . . . Martial Activations . | . . . . . . . . . . . . . . . . . . . . . . . . . . . . . Shielding Activations . | . . . . . . . . . . . . . . . . . . . . . . . . . . . . . Robots Disrupted 2 | . . . . . . . . . . 1 . . . . . . . . . . . . . 1 . . . . Combat Hostiles 2 | . . . . . . . . . . 1 . . . . . . . . . . . . . 1 . . . . Robots Corrupted 15 | . . . . . . 4 . . . 2 . . 1 . . 2 . 3 . 1 . . . 2 . . . . Combat Hostiles 13 | . . . . . . 4 . . . 2 . . 1 . . 2 . 2 . . . . . 2 . . . . Parts Fried 35 | . 2 1 . . . 17 . . . 3 . . . . . 6 . 3 . 1 . . . 2 . . . . Impact Corruptions 3 | . . . . . . . . . . . . . . . . . . . . 3 . . . . . . . . Robots Melted 14 | . . . . . . 3 . . . 4 . . . . 2 . 1 . . . . 1 1 2 . . . . Combat Hostiles 13 | . . . . . . 3 . . . 3 . . . . 2 . 1 . . . . 1 1 2 . . . . Parts Melted 54 | . 1 . . . . 22 . 2 . 11 . 2 . . 6 1 4 1 . . . . 2 1 . . . 1 Heat Transferred 24619 | . 400 150 . . 222 9116 . 535 . 5415 . 1209 424 274 635 426 900 2822 333 . 148 296 444 870 . . . . Parts Sabotaged 8 | . . . . . . . . . . . . . . . . . . . . . . . . 8 . . . . Parts Stolen . | . . . . . . . . . . . . . . . . . . . . . . . . . . . . . Parts Stripped . | . . . . . . . . . . . . . . . . . . . . . . . . . . . . . Power Chain Reactions 29 | . 6 3 . . . 4 2 . . 2 . . 2 . . 6 . 4 . . . . . . . . . . Alert | -11 -10 -10 -10 -9 -8 -7 -7 -7 -7 -6 -6 -6 -5 -5 -5 -5 -4 -4 -4 -4 -4 -3 -3 -3 -3 -2 -2 -2 ------- Run | Yrd Mat Min Exi Min Mat Fac Low Low Dat Pro Fac DSF Fac Upp Upp War Pro Fac Upp Upp Zhi Pro Res Arm Lab Res Qua Sec Maximum Alert Level 4 | . 1 . . . 2 4 . . . . . 1 2 . . . . 3 . . . . . 1 . . . . Low Security (%) 60 | . 86 100 . 100 72 14 . . . . 100 17 61 . . . . 55 . . . . 100 82 . 100 100 100 Level 1 17 | . 13 . . . 22 23 . . . . . 82 36 . . . . 12 . . . . . 17 . . . . Level 2 12 | . . . . . 4 35 . . . . . . 1 . . . . 16 . . . . . . . . . . Level 3 9 | . . . . . . 25 . . . . . . . . . . . 15 . . . . . . . . . . Level 4 . | . . . . . . . . . . . . . . . . . . . . . . . . . . . . . Level 5 . | . . . . . . . . . . . . . . . . . . . . . . . . . . . . . High Security . | . . . . . . . . . . . . . . . . . . . . . . . . . . . . . Max Security . | . . . . . . . . . . . . . . . . . . . . . . . . . . . . . Sterilizations 1 | . . . . . . . . . . . . 1 . . . . . . . . . . . . . . . . Peak Influence 1137 | . 291 75 . 70 423 1137 . . . . 81 299 402 . . . . 885 . . . . 151 358 . 15 98 74 Initial 186 | . . 4 . . . 186 . . . . 81 60 156 . . . . 13 . . . . 87 47 . . 3 48 Average 231 | . 84 8 . 6 125 503 . . . . 81 223 201 . . . . 299 . . . . 96 151 . 1 52 41 Influence Increases 9437 | . 577 136 . 70 1160 1989 90 10 . 612 5 319 502 49 183 340 50 1431 40 215 15 305 114 793 . 45 153 234 Destroy 0b10 Robot/C 5540 | . 280 100 . 60 780 1260 80 . . 460 . 160 240 20 120 240 40 760 20 180 . 260 80 380 . . . 20 Destroy 0b10 Robot/NC 410 | . 45 . . . 60 90 . 10 . 60 . 10 20 5 . 10 . 50 20 5 15 5 . 5 . . . . Destroy Leader 1046 | . 70 20 . 10 194 302 10 . . 20 . 40 36 10 20 . 10 164 . 30 . 40 20 50 . . . . Allied During Kill 309 | . . . . . . . . . . 57 . 94 116 14 28 . . . . . . . . . . . . . Trap Triggered on 0b10 20 | . . . . . . . . . . . . . . . . . . 10 . . . . . . . . . 10 Successful Hack 158 | . 28 . . . 47 17 . . . . 5 . 29 . . . . 5 . . . . . . . . 27 . Select Force Hacks 120 | . 60 . . . 60 . . . . . . . . . . . . . . . . . . . . . . . Disable Machine 870 | . 45 . . . . 210 . . . . . 15 45 . . . . 240 . . . . . 135 . 15 60 105 Destroy Structure 559 | . 49 16 . . 4 65 . . . . . . 16 . . . . 202 . . . . 14 178 . . 6 9 Partial Spotted 15 | . . . . . . . . . . . . . . . . . . . . . . . . . . . . 15 Lose Combat Pursuer 390 | . . . . . 15 45 . . . 15 . . . . 15 90 . . . . . . . 45 . 30 60 75 Influence Decreases 9437 | . 564 149 . 70 748 1265 801 435 . 482 49 106 463 387 183 113 255 574 840 294 15 176 152 544 340 38 74 320 Entered New Map 2128 | . . 9 . . . 226 421 82 . . 49 26 143 126 . . 227 9 326 16 . . 42 44 340 . 4 38 Time Decay 5924 | . 414 126 . 70 568 729 380 353 . 442 . . 310 261 120 93 18 465 514 278 15 176 50 310 . 38 70 124 Lost Part 694 | . . 14 . . 30 160 . . . 40 . . 10 . . 20 10 50 . . . . 60 190 . . . 110 Lost Ally 193 | . . . . . . . . . . . . 80 . . 63 . . 50 . . . . . . . . . . Purge Threat 498 | . 150 . . . 150 150 . . . . . . . . . . . . . . . . . . . . . 48 Squads Dispatched 60 | . 3 1 . . 6 19 . . . . . 2 4 . . . . 9 . . . . 1 1 . 4 4 6 Investigation 9 | . 2 1 . . 4 1 . . . . . . . . . . . . . . . . . . . . 1 . Extermination 12 | . . . . . . 5 . . . . . . 1 . . . . 3 . . . . . 1 . . 1 1 Reinforcement 26 | . 1 . . . 2 8 . . . . . 2 3 . . . . 5 . . . . 1 . . 2 . 2 Assault 2 | . . . . . . 2 . . . . . . . . . . . . . . . . . . . . . . Garrison 6 | . . . . . . 3 . . . . . . . . . . . 1 . . . . . . . . 2 . Intercept 5 | . . . . . . . . . . . . . . . . . . . . . . . . . . 2 . 3 Searches Triggered . | . . . . . . . . . . . . . . . . . . . . . . . . . . . . . Construction Impeded 7 | . . . . . . 2 . . . . . . 2 . . . . 3 . . . . . . . . . . Haulers Reinforced 4 | . . . . . . 2 . . . . . . 1 . . . . . . . . . . . . 1 . . Active Scanning Responses . | . . . . . . . . . . . . . . . . . . . . . . . . . . . . . Cargo Convoy Interrupts . | . . . . . . . . . . . . . . . . . . . . . . . . . . . . . Stealth | -11 -10 -10 -10 -9 -8 -7 -7 -7 -7 -6 -6 -6 -5 -5 -5 -5 -4 -4 -4 -4 -4 -3 -3 -3 -3 -2 -2 -2 --------- Run | Yrd Mat Min Exi Min Mat Fac Low Low Dat Pro Fac DSF Fac Upp Upp War Pro Fac Upp Upp Zhi Pro Res Arm Lab Res Qua Sec Distress Signals 20 | . . . . . 3 1 . . . 2 . . 1 . . 1 . 6 . . . . . 2 . 1 1 2 Communications Jammed . | . . . . . . . . . . . . . . . . . . . . . . . . . . . . . Distress Signals . | . . . . . . . . . . . . . . . . . . . . . . . . . . . . . Times Spotted 382 | . 19 5 . 3 49 88 3 . . 27 . 8 11 1 6 21 2 45 1 2 . 5 5 37 1 2 7 34 Peak Tracking Total 17 | . 2 3 . 3 7 6 4 . . 5 . 4 5 1 3 12 2 6 1 2 . 9 3 5 1 3 6 17 Tactical Retreats 20 | . . . . . 1 3 . . . 1 . . . . 1 4 . . . . . . . 3 . 2 2 3 Traps | -11 -10 -10 -10 -9 -8 -7 -7 -7 -7 -6 -6 -6 -5 -5 -5 -5 -4 -4 -4 -4 -4 -3 -3 -3 -3 -2 -2 -2 ------- Run | Yrd Mat Min Exi Min Mat Fac Low Low Dat Pro Fac DSF Fac Upp Upp War Pro Fac Upp Upp Zhi Pro Res Arm Lab Res Qua Sec Traps Triggered 16 | . . . . . 4 6 . . . . . . 1 . . . . 4 . . . . . . . . 1 . Indirectly . | . . . . . . . . . . . . . . . . . . . . . . . . . . . . . Trap Hack Attempts . | . . . . . . . . . . . . . . . . . . . . . . . . . . . . . Triggered . | . . . . . . . . . . . . . . . . . . . . . . . . . . . . . Disarmed 1 | . . . . . 1 . . . . . . . . . . . . . . . . . . . . . . . Reprogrammed 6 | . . . . . . . . . . . . . . . . . . . . . . . . . . . . 6 Reused 1 | . . . . . . . . . . . . . . . . . . . . . . . . . . . . 1 Traps Extracted . | . . . . . . . . . . . . . . . . . . . . . . . . . . . . . Installed 23 | . . . . . . . . 11 . . . . . . . . . . 12 . . . . . . . . . Triggered 2 | . . . . . . . . . . . . . . . . . . 1 . . . . . . . . . 1 Machines | -11 -10 -10 -10 -9 -8 -7 -7 -7 -7 -6 -6 -6 -5 -5 -5 -5 -4 -4 -4 -4 -4 -3 -3 -3 -3 -2 -2 -2 ---------- Run | Yrd Mat Min Exi Min Mat Fac Low Low Dat Pro Fac DSF Fac Upp Upp War Pro Fac Upp Upp Zhi Pro Res Arm Lab Res Qua Sec Machines Disabled 67 | . 3 . . . . 14 . . . 3 . 1 3 . . . . 16 . 1 2 . . 9 3 1 4 7 Max in Single Turn 6 | . 2 . . . . 4 . . . 1 . 1 1 . . . . 6 . 1 1 . . 2 1 1 1 1 Garrison Access 6 | . . . . . 1 1 . . . . . . . . . . . 1 . . . . . . . 2 . 1 Machines Repaired . | . . . . . . . . . . . . . . . . . . . . . . . . . . . . . Machines Dismantled . | . . . . . . . . . . . . . . . . . . . . . . . . . . . . . Machines Sabotaged . | . . . . . . . . . . . . . . . . . . . . . . . . . . . . . Overloaded Fab Kills . | . . . . . . . . . . . . . . . . . . . . . . . . . . . . . Hacking | -11 -10 -10 -10 -9 -8 -7 -7 -7 -7 -6 -6 -6 -5 -5 -5 -5 -4 -4 -4 -4 -4 -3 -3 -3 -3 -2 -2 -2 --------- Run | Yrd Mat Min Exi Min Mat Fac Low Low Dat Pro Fac DSF Fac Upp Upp War Pro Fac Upp Upp Zhi Pro Res Arm Lab Res Qua Sec Machines Accessed 72 | . 9 1 1 . 15 9 . 2 4 2 1 . 4 1 . 2 1 3 . 1 4 . . . . 1 3 8 Terminals 36 | . 6 . . . 9 4 . . . 1 1 . 3 . . . 1 1 . . . . . . . . 3 7 Fabricators 5 | . . . . . . 2 . . . 1 . . 1 . . . . 1 . . . . . . . . . . Repair Stations 4 | . 1 . . . 2 1 . . . . . . . . . . . . . . . . . . . . . . Recycling Units 4 | . 2 . . . 2 . . . . . . . . . . . . . . . . . . . . . . . Scanalyzers 1 | . . . . . 1 . . . . . . . . . . . . . . . . . . . . . . . Garrison Access 6 | . . . . . 1 2 . . . . . . . . . . . 1 . . . . . . . 1 . 1 Total Hacks 217 | . 32 1 1 . 42 20 . 2 26 2 1 . 10 1 . 2 1 8 . 1 17 . . . . 1 12 37 Successful 149 | . 17 1 1 . 30 9 . 2 26 2 1 . 4 1 . 2 1 4 . 1 17 . . . . 1 7 22 Failed 66 | . 14 . . . 11 11 . . . . . . 6 . . . . 4 . . . . . . . . 5 15 Catastrophic 13 | . 2 . . . . 3 . . . . . . 3 . . . . 1 . . . . . . . . 1 3 Database Lockouts 2 | . 1 . . . 1 . . . . . . . . . . . . . . . . . . . . . . . Manual 85 | . 21 . . . 23 4 . . . . . . 8 . . . . 3 . . . . . . 1 . 6 19 Terminals 131 | . 27 . . . 30 13 . . . 1 1 . 8 . . . 1 3 . . . . . . . . 12 35 Fabricators 9 | . . . . . . 3 . . . 1 . . 2 . . . . 3 . . . . . . . . . . Repair Stations 8 | . 2 . . . 4 2 . . . . . . . . . . . . . . . . . . . . . . Recycling Units 5 | . 3 . . . 2 . . . . . . . . . . . . . . . . . . . . . . . Scanalyzers 5 | . . . . . 5 . . . . . . . . . . . . . . . . . . . . . . . Garrison Access 8 | . . . . . 1 2 . . . . . . . . . . . 2 . . . . . . . 1 . 2 Terminal Hacks 104 | . 13 1 1 . 16 3 . 2 26 1 1 . . 1 . 2 1 . . 1 17 . . . . . 4 14 Record 14 | . . . 1 . . . . . 7 . . . . . . . 1 . . . 5 . . . . . . . Part Schematic 16 | . . . . . . . . . 12 . . . . . . . . . . . 4 . . . . . . . Robot Schematic 4 | . . . . . . . . . 4 . . . . . . . . . . . . . . . . . . . Robot Analysis 8 | . 2 . . . 1 . . . . . . . . . . . . . . . 4 . . . . . 1 . Prototype ID Bank 23 | . 4 . . . 8 1 . . 3 . . . . . . . . . . . 4 . . . . . 1 2 Open Door 12 | . . 1 . . . . . 2 . 1 . . . 1 . 2 . . . 1 . . . . . . 1 3 Open DSF 1 | . . . . . . . . . . . 1 . . . . . . . . . . . . . . . . . Level Access Points 1 | . . . . . . 1 . . . . . . . . . . . . . . . . . . . . . . Machine Index 1 | . . . . . . . . . . . . . . . . . . . . . . . . . . . . 1 Unreport Threat 4 | . 1 . . . 1 1 . . . . . . . . . . . . . . . . . . . . . 1 Locate Traps 10 | . 5 . . . 3 . . . . . . . . . . . . . . . . . . . . . . 2 Disarm Traps 1 | . . . . . 1 . . . . . . . . . . . . . . . . . . . . . . . Reprogram Traps 1 | . . . . . . . . . . . . . . . . . . . . . . . . . . . . 1 Recall Investigation 2 | . . . . . 1 . . . . . . . . . . . . . . . . . . . . . 1 . Recall Reinforcements 1 | . . . . . . . . . . . . . . . . . . . . . . . . . . . . 1 Hauler Manifests 3 | . 1 . . . 1 . . . . . . . . . . . . . . . . . . . . . . 1 Zone Layout 2 | . . . . . . . . . . . . . . . . . . . . . . . . . . . . 2 Fabricator Hacks 8 | . . . . . . 3 . . . 1 . . 2 . . . . 2 . . . . . . . . . . Network Status 2 | . . . . . . 2 . . . . . . . . . . . . . . . . . . . . . . Load Schematic 3 | . . . . . . 1 . . . . . . 1 . . . . 1 . . . . . . . . . . Build 3 | . . . . . . . . . . 1 . . 1 . . . . 1 . . . . . . . . . . Repair Station Hacks 6 | . . . . . 4 2 . . . . . . . . . . . . . . . . . . . . . . Scan Component 3 | . . . . . 2 1 . . . . . . . . . . . . . . . . . . . . . . Repair 3 | . . . . . 2 1 . . . . . . . . . . . . . . . . . . . . . . Recycling Unit Hacks . | . . . . . . . . . . . . . . . . . . . . . . . . . . . . . Scanalyzer 4 | . . . . . 4 . . . . . . . . . . . . . . . . . . . . . . . Insert Component 2 | . . . . . 2 . . . . . . . . . . . . . . . . . . . . . . . Analyze 2 | . . . . . 2 . . . . . . . . . . . . . . . . . . . . . . . Garrison Access Hacks 5 | . . . . . 1 1 . . . . . . . . . . . 1 . . . . . . . 1 . 1 Seal Access 5 | . . . . . 1 1 . . . . . . . . . . . 1 . . . . . . . 1 . 1 Unauthorized Hacks 22 | . 4 . . . 5 . . . . . . . 2 . . . . 1 . . . . . . . . 3 7 Terminals 18 | . 2 . . . 3 . . . . . . . 2 . . . . 1 . . . . . . . . 3 7 Track 1 | . . . . . . . . . . . . . . . . . . . . . . . . . . . . 1 Assimilate 3 | . . . . . . . . . . . . . . . . . . . . . . . . . . . 1 2 Botnet 10 | . 1 . . . 3 . . . . . . . 2 . . . . 1 . . . . . . . . 2 1 Disrupt 2 | . . . . . . . . . . . . . . . . . . . . . . . . . . . . 2 Operators 2 | . 1 . . . . . . . . . . . . . . . . . . . . . . . . . . 1 Fabricators . | . . . . . . . . . . . . . . . . . . . . . . . . . . . . . Repair Stations . | . . . . . . . . . . . . . . . . . . . . . . . . . . . . . Recycling Units 4 | . 2 . . . 2 . . . . . . . . . . . . . . . . . . . . . . . Tunnel 4 | . 2 . . . 2 . . . . . . . . . . . . . . . . . . . . . . . Scanalyzers . | . . . . . . . . . . . . . . . . . . . . . . . . . . . . . Garrison Access . | . . . . . . . . . . . . . . . . . . . . . . . . . . . . . Data Cores Recovered 1 | . . . . . . 1 . . . . . . . . . . . . . . . . . . . . . . Used . | . . . . . . . . . . . . . . . . . . . . . . . . . . . . . Hacking Detections 38 | . 8 . . . 11 7 . . . 1 1 . 3 . . . . 3 . . . . . . . . 2 2 Full Trace Events 2 | . . . . . . 1 . . . . . . . . . . . . . . . . . . . . 1 . Feedback Events . | . . . . . . . . . . . . . . . . . . . . . . . . . . . . . Feedback Blocked . | . . . . . . . . . . . . . . . . . . . . . . . . . . . . . Robot Schematics Acquired 4 | . . . . . . . . . 4 . . . . . . . . . . . . . . . . . . . Robots Built 2 | . . . . . . . . . . . . . . . . . . 2 . . . . . . . . . . Authchips 1 | . . . . . . . . . . . . . . . . . . 1 . . . . . . . . . . Time 67 | . . . . . . . . . . . . . . . . . . 67 . . . . . . . . . . Total Robot Build Rating 8 | . . . . . . . . . . . . . . . . . . 8 . . . . . . . . . . Part Schematics Acquired 17 | . . . . . 1 . . . 12 . . . . . . . . . . . 4 . . . . . . . Parts Built 4 | . . . . . . . . . . 2 . . 2 . . . . . . . . . . . . . . . Authchips 1 | . . . . . . . . . . . . . 1 . . . . . . . . . . . . . . . Time 159 | . . . . . . . . . . 53 . . 106 . . . . . . . . . . . . . . . Total Part Build Rating 24 | . . . . . . . . . . 12 . . 12 . . . . . . . . . . . . . . . Parts Repaired 3 | . . . . . 2 1 . . . . . . . . . . . . . . . . . . . . . . Time 120 | . . . . . 76 44 . . . . . . . . . . . . . . . . . . . . . . Parts Recycled . | . . . . . . . . . . . . . . . . . . . . . . . . . . . . . Recycled Matter . | . . . . . . . . . . . . . . . . . . . . . . . . . . . . . Retrieved Matter . | . . . . . . . . . . . . . . . . . . . . . . . . . . . . . Retrieved Components . | . . . . . . . . . . . . . . . . . . . . . . . . . . . . . Parts Scanalyzed 2 | . . . . . 2 . . . . . . . . . . . . . . . . . . . . . . . Part Schematics Acquired 1 | . . . . . 1 . . . . . . . . . . . . . . . . . . . . . . . Parts Damaged 1 | . . . . . 1 . . . . . . . . . . . . . . . . . . . . . . . Bothacking | -11 -10 -10 -10 -9 -8 -7 -7 -7 -7 -6 -6 -6 -5 -5 -5 -5 -4 -4 -4 -4 -4 -3 -3 -3 -3 -2 -2 -2 ------------ Run | Yrd Mat Min Exi Min Mat Fac Low Low Dat Pro Fac DSF Fac Upp Upp War Pro Fac Upp Upp Zhi Pro Res Arm Lab Res Qua Sec Used RIF Installer . | . . . . . . . . . . . . . . . . . . . . . . . . . . . . . Robots Hacked 5 | . . . 4 . . . . . . . . . . . . . . 1 . . . . . . . . . . Non-combat 4 | . . . 3 . . . . . . . . . . . . . . 1 . . . . . . . . . . Combat 1 | . . . 1 . . . . . . . . . . . . . . . . . . . . . . . . . Robot Hacks Applied 5 | . . . 4 . . . . . . . . . . . . . . 1 . . . . . . . . . . parse_system 4 | . . . 4 . . . . . . . . . . . . . . . . . . . . . . . . . no_distress 1 | . . . . . . . . . . . . . . . . . . 1 . . . . . . . . . . Relay Couplers Released 3 | . . . . . . . . . . . . . . . . . . . . . . . . . . 3 . . Machine Destruction 3 | . . . . . . . . . . . . . . . . . . . . . . . . . . 3 . . Fabnet Peak Effective % . | . . . . . . . . . . . . . . . . . . . . . . . . . . . . . Robots Rewired 10 | . . . . . . . . . . 10 . . . . . . . . . . . . . . . . . . Allies Hacked . | . . . . . . . . . . . . . . . . . . . . . . . . . . . . . Hacks Repelled . | . . . . . . . . . . . . . . . . . . . . . . . . . . . . . Allies | -11 -10 -10 -10 -9 -8 -7 -7 -7 -7 -6 -6 -6 -5 -5 -5 -5 -4 -4 -4 -4 -4 -3 -3 -3 -3 -2 -2 -2 -------- Run | Yrd Mat Min Exi Min Mat Fac Low Low Dat Pro Fac DSF Fac Upp Upp War Pro Fac Upp Upp Zhi Pro Res Arm Lab Res Qua Sec Total Allies 14 | . . 2 . . . . . . . 10 . . . . . . . 2 . . . . . . . . . . Largest Group 10 | . . 2 2 . . . . . . 10 10 10 5 5 5 . . 2 . . . . . . . . . . Highest-Rated Group 241 | . . 41 41 . . . . . . 241 241 241 171 171 171 . . 64 . . . . . . . . . . Highest-Rated Ally 43 | . . 31 31 . . . . . . 43 43 43 43 43 43 . . 32 . . . . . . . . . . Initial Warlord ECA Mod 122 | . . . . . . . . . . . . . 9 9 9 9 8 8 8 8 8 7 7 7 7 6 6 6 Total Orders 2 | . . . . . . . . . . 2 . . . . . . . . . . . . . . . . . . STAY 1 | . . . . . . . . . . 1 . . . . . . . . . . . . . . . . . . FOLLOW 1 | . . . . . . . . . . 1 . . . . . . . . . . . . . . . . . . Ally Attacks 59 | . . . . . . . . . . . . 21 25 1 9 . . 3 . . . . . . . . . . Total Damage 1832 | . . . . . . . . . . . . 563 796 57 331 . . 85 . . . . . . . . . . Kills 15 | . . . . . . . . . . . . 4 8 . 2 . . 1 . . . . . . . . . . Allies Corrupted 2 | . . . . . . . . . . . . . . . . . . 2 . . . . . . . . . . Allies Melted . | . . . . . . . . . . . . . . . . . . . . . . . . . . . . . Intel | -11 -10 -10 -10 -9 -8 -7 -7 -7 -7 -6 -6 -6 -5 -5 -5 -5 -4 -4 -4 -4 -4 -3 -3 -3 -3 -2 -2 -2 ------- Run | Yrd Mat Min Exi Min Mat Fac Low Low Dat Pro Fac DSF Fac Upp Upp War Pro Fac Upp Upp Zhi Pro Res Arm Lab Res Qua Sec Active Infowar (turns) 15104 | . . . . . 2 . 896 1200 133 1802 5 123 374 1416 1382 650 974 432 1209 1765 292 1920 72 . . 280 141 36 Sensors 14688 | . . . . . 2 . 896 1200 133 1802 5 123 374 1416 1382 650 974 432 1209 1765 292 1920 72 . . 41 . . Terrain 1 | . . . . . . . . . . . . . . . . . . . . . . . . . . 1 . . Structural 1 | . . . . . . . . . . . . . . . . . . . . . . . . . . 1 . . Machine Analysis 456 | . . . . . . . . . . . . . . . . . . . . . . . . . . 279 141 36 Jamming 2 | . . . . . . . . . . . . . . . . . . . . . . . . . . 2 . . Robot Analysis Total 8 | . 2 . . . 1 . . . . . . . . . . . . . . . 4 . . . . . 1 . Derelict Logs Recovered 13 | . . 1 . 2 . . 2 1 . 1 . . . 1 2 . . . 2 1 . . . . . . . . Drone Launches 3 | . . . . . . . . . . . . . . . . . . 3 . . . . . . . . . . Drone Recoveries . | . . . . . . . . . . . . . . . . . . . . . . . . . . . . . Exploration | -11 -10 -10 -10 -9 -8 -7 -7 -7 -7 -6 -6 -6 -5 -5 -5 -5 -4 -4 -4 -4 -4 -3 -3 -3 -3 -2 -2 -2 ------------- Run | Yrd Mat Min Exi Min Mat Fac Low Low Dat Pro Fac DSF Fac Upp Upp War Pro Fac Upp Upp Zhi Pro Res Arm Lab Res Qua Sec Turns Passed 28200 | . 1203 926 620 771 2063 3564 896 1200 133 2290 5 309 698 1416 1426 699 1029 1677 1404 1769 297 1920 118 693 66 582 141 285 Spaces Moved 17313 | 1 664 548 381 458 993 1800 552 714 84 1017 4 141 410 859 856 383 585 845 810 1042 160 992 52 316 58 1473 470 645 Core 294 | . . . . . 1 . . . . . . . . . . . . . . . . . . 37 58 113 . 85 Treads 14600 | . 659 548 381 458 992 1800 552 714 84 1017 4 141 410 859 856 383 585 845 810 1042 160 992 52 247 . 9 . . Legs 38 | 1 5 . . . . . . . . . . . . . . . . . . . . . . 32 . . . . Wheels . | . . . . . . . . . . . . . . . . . . . . . . . . . . . . . Hover 82 | . . . . . . . . . . . . . . . . . . . . . . . . . . 82 . . Flight 2196 | . . . . . . . . . . . . . . . . . . . . . . . . . . 1269 470 457 Fastest Speed 23 | 120 120 160 160 160 160 160 160 160 160 160 160 160 160 162 162 162 162 160 167 167 166 167 163 50 50 23 23 23 Average Speed 143 | 120 159 160 160 160 164 161 160 160 160 160 160 169 160 162 162 162 162 170 167 167 166 167 166 161 75 30 23 33 Slowest Speed 850 | 120 160 160 160 160 850 245 160 160 160 160 160 240 162 162 242 162 162 240 167 167 167 167 167 410 350 180 23 200 Overloaded Moves . | . . . . . . . . . . . . . . . . . . . . . . . . . . . . . Propulsion Burnouts . | . . . . . . . . . . . . . . . . . . . . . . . . . . . . . Robots Hopped 22 | . . . . . . . . . . . . . . . . . . . . . . . . . . 10 7 5 Potential Cave-ins . | . . . . . . . . . . . . . . . . . . . . . . . . . . . . . Cave-ins Triggered . | . . . . . . . . . . . . . . . . . . . . . . . . . . . . . Teleports 4 | . . . . . . . . . . . . . . . . . . . . . . . . 1 . . . 3 Microwarps 14 | . . . . . . . . . . . . . . . . . . . . . . . . . . . . 14 Exploration Rate (%) 65 | 2 96 98 64 96 85 54 73 80 70 76 . 84 15 88 89 73 75 37 92 93 60 95 2 19 52 42 59 57 Regions Visited 28 Branch Regions 19 Pre-discovered Areas 12 | . 2 1 1 1 2 . . . 1 . . . . 1 . . . . . . 3 . . . . . . . Known Exits Taken 19 | . . . . . . . 1 1 1 1 1 . 1 1 1 1 1 . 1 1 1 1 1 1 1 1 1 . Unknown Exits Taken 8 | 1 1 1 1 1 1 1 . . . . . . . . . . . 1 . . . . . . . . . . Scrap Searched 29 | . . 1 . 2 . . 3 1 . 3 . . . 2 4 . 5 . 4 3 . 1 . . . . . . Spaces Dug 17 | . . . . . . 1 . . . 4 . . . . . . . 5 . 1 . . . 1 . . 2 3 Terrain Destroyed 888 | . 56 16 . . 1 61 3 . . 22 . . 8 4 3 38 3 103 23 130 . 249 9 153 1 . 2 3 Melee 5 | . . . . . . . . . . . . . . . . . . . . . . . . . . . 2 3 Projectile 124 | . . . . . 1 17 . . . 13 . . 2 4 3 2 3 31 6 2 . 6 9 24 1 . . . AOE 759 | . 56 16 . . . 44 3 . . 9 . . 6 . . 36 . 72 17 128 . 243 . 129 . . . . Terrain Rammed . | . . . . . . . . . . . . . . . . . . . . . . . . . . . . . Walls Destroyed . | . . . . . . . . . . . . . . . . . . . . . . . . . . . . . Machines Disabled . | . . . . . . . . . . . . . . . . . . . . . . . . . . . . . Actions | -11 -10 -10 -10 -9 -8 -7 -7 -7 -7 -6 -6 -6 -5 -5 -5 -5 -4 -4 -4 -4 -4 -3 -3 -3 -3 -2 -2 -2 --------- Run | Yrd Mat Min Exi Min Mat Fac Low Low Dat Pro Fac DSF Fac Upp Upp War Pro Fac Upp Upp Zhi Pro Res Arm Lab Res Qua Sec Total 19600 | . 744 575 390 480 1299 2153 560 756 83 1498 3 187 438 877 876 446 656 998 845 1061 185 1228 72 440 73 1589 487 601 Wait 687 | . 6 . . . 100 65 . 14 . 144 . 2 . . 2 25 57 11 . . . 208 6 47 . . . . Move 17156 | . 663 547 380 457 992 1799 551 713 83 1016 3 140 409 858 855 382 584 844 809 1041 159 991 52 315 57 1454 455 547 Hop 19 | . . . . . . . . . . . . . . . . . . . . . . . . . . 8 7 4 Pick Up 153 | . 13 5 2 4 21 31 3 4 . 8 . 9 3 2 2 4 3 16 1 1 2 . . 7 1 3 3 5 Fast Attach 153 | . 5 1 . 1 18 17 . 1 . . . 2 2 2 . 1 . 7 2 3 9 . . 6 3 64 3 6 Attach 106 | . 2 2 . . 8 24 . . . 6 . 5 5 . . 2 2 14 1 . . . 5 14 3 5 2 6 Detach 61 | . 4 1 . 1 9 7 . . . . . 1 2 . . . 1 8 3 . 1 . 1 1 2 14 3 2 Swap 129 | . 2 1 2 . 10 30 3 1 . 26 . 6 5 7 7 5 2 18 1 . . . 2 . . . 1 . Drop 190 | . 8 4 2 5 27 27 . 4 . 4 . 10 2 5 1 4 1 19 3 2 10 . . . 1 40 6 5 Fire 684 | . 37 12 . 8 109 145 3 8 . 123 . 12 7 3 9 23 6 57 13 13 4 29 6 50 6 . 1 . Melee 38 | . . . 4 . . . . . . . . . . . . . . 1 . . . . . . . 1 6 26 Ram . | . . . . . . . . . . . . . . . . . . . . . . . . . . . . . Kick . | . . . . . . . . . . . . . . . . . . . . . . . . . . . . . Crush 30 | . 4 2 . 4 5 8 . . . . . . 3 . . . . 3 . 1 . . . . . . . . Escape Stasis . | . . . . . . . . . . . . . . . . . . . . . . . . . . . . . Rewire 171 | . . . . . . . . . . 171 . . . . . . . . . . . . . . . . . . Trap 23 | . . . . . . . . 11 . . . . . . . . . . 12 . . . . . . . . . Miscellaneous . | . . . . . . . . . . . . . . . . . . . . . . . . . . . . . Route ------- -11/Scrapyard -10/Materials (discovered 5 exits: [*Mat x3] / *Min x2) -10/Mines (discovered 3 exits: [*Mat x2] / *Exi) -10/Exiles -9/Mines (discovered 2 exits: *Mat x2) -8/Materials (discovered 2 exits: *Fac x2) -7/Factory (discovered 5 exits: *Fac x4 / [*Low]) -7/Lower Caves -7/Lower Caves -7/Data Miner -6/Proximity Caves -6/Factory (discovered 2 exits: Fac / DSF) -6/DSF -5/Factory -5/Upper Caves -5/Upper Caves (discovered 2 exits: *Fac / *War) -5/Warlord -4/Proximity Caves -4/Factory (discovered 3 exits: *Res x2 / [*Upp]) -4/Upper Caves -4/Upper Caves -4/Zhirov -3/Proximity Caves -3/Research (discovered 3 exits: Res / *Arm / Tes) -3/Armory (discovered 2 exits: *Res / *Lab) -3/Lab -2/Research (discovered 2 exits: *Acc / *Qua) -2/Quarantine (discovered 2 exits: *Sec / *Frg) -2/Section 7 History --------- Turn | Location | Event 1 | -11/Scrapyard | Discovered new exit (range 0) 1 | -11/Scrapyard | Entered Materials 317 | -10/Materials | Build established: Mutant 318 | -10/Materials | Discovered new exit (range 6) 339 | -10/Materials | Central database locked down 348 | -10/Materials | Discovered new exit (range 16) 376 | -10/Materials | Discovered new exit (range 13) 515 | -10/Materials | Discovered new exit (range 16) 1094 | -10/Materials | Discovered new exit (range 15) 1204 | -10/Materials | Entered Mines 1231 | -10/Mines | Discovered new exit (range 15) 1337 | -10/Mines | Deemed a non-threat by the Exiles lab entrance 1339 | -10/Mines | Discovered new exit (range 5) 1547 | -10/Mines | Core integrity fell below 50% 1567 | -10/Mines | Found a damaged Exp. Sensor Array with a note attached 1570 | -10/Mines | Found Prototype Device 1637 | -10/Mines | Met a Derelict shopkeep closing up shop 1689 | -10/Mines | Learned location of Mines (-9) 1868 | -10/Mines | Discovered new exit (range 7) 2130 | -10/Mines | Entered Exiles 2130 | -10/Exiles | Accompanied by 2 allies 2160 | -10/Exiles | Led the pair of lost Derelicts to a safe place 2173 | -10/Exiles | Met 8R-AWN 2201 | -10/Exiles | Met EX-HEX 2242 | -10/Exiles | Met EX-BIN 2498 | -10/Exiles | Met EX-DEC 2544 | -10/Exiles | Learned location of Zion (-6) 2733 | -10/Exiles | Discovered new exit (range 10) 2750 | -10/Exiles | Entered Mines 2805 | -9/Mines | Learned location of Storage (-7) 2974 | -9/Mines | Discovered new exit (range 13) 3013 | -9/Mines | A weapon hastily lodged in a ceiling crevice suddenly fell to the ground 3292 | -9/Mines | Learned Materials emergency access door positions 3309 | -9/Mines | Discovered new exit (range 14) 3320 | -9/Mines | Received a Rocket Launcher from a helpful Derelict 3521 | -9/Mines | Entered Materials 3521 | -8/Materials | Evolved 4 slots: Propulsion x1, Utility x2, Weapon x1 3733 | -8/Materials | Found Powered Armor 3740 | -8/Materials | Identified Exp. Sensor Array 3751 | -8/Materials | Found Powered Armor 3823 | -8/Materials | Build established: Gunner 4100 | -8/Materials | Repaired Deuterium Engine 4389 | -8/Materials | Discovered new exit (range 14) 4439 | -8/Materials | Central database locked down 5255 | -8/Materials | Repaired Arm. Treads 5493 | -8/Materials | Discovered new exit (range 15) 5584 | -8/Materials | Entered Factory 5584 | -7/Factory | Evolved 2 slots: Power x1, Propulsion x1 5685 | -7/Factory | Repaired Imp. Deuterium Engine 5896 | -7/Factory | Build established: Scavenger-Gunner 6480 | -7/Factory | Build established: Scavenger-Tank 6899 | -7/Factory | Identified exit to Factory 7200 | -7/Factory | Build established: Scavenger-Gunner 7984 | -7/Factory | First assault squad dispatched 8011 | -7/Factory | Build established: Gunner 8535 | -7/Factory | Garrison activated, responded to threat 8593 | -7/Factory | Destroyed 8 combat bots 9102 | -7/Factory | Discovered new exit (range 9) 9148 | -7/Factory | Entered Lower Caves 9153 | -7/Lower Caves | Lost 4 parts (2n2w) 9153 | -7/Lower Caves | Learned Factory garrison access intel 9444 | -7/Lower Caves | Build established: Skirmisher 9607 | -7/Lower Caves | Learned location of 1 exit from Factory 9940 | -7/Lower Caves | Discovered new exit (range 14) 9970 | -7/Lower Caves | Identified exit to Lower Caves 10044 | -7/Lower Caves | Entered another Lower Caves area 10965 | -7/Lower Caves | Learned Factory stockpile data 11144 | -7/Lower Caves | Discovered new exit (range 12) 11162 | -7/Lower Caves | Identified exit to Data Miner 11244 | -7/Lower Caves | Entered Data Miner 11244 | -7/Data Miner | Discovered new exit (range 6) 11275 | -7/Data Miner | Met Data Miner 11307 | -7/Data Miner | Learned location of Section 7 (-2) 11307 | -7/Data Miner | Acquired the access code to Warlord's prototype stash 11334 | -7/Data Miner | Received God Mode back door access code from Data Miner 11376 | -7/Data Miner | Identified exit to Proximity Caves 11377 | -7/Data Miner | Entered Proximity Caves 11379 | -6/Proximity Caves | Attracted the attention of an 0b10 checkpoint 11782 | -6/Proximity Caves | Learned Factory security intel 12366 | -6/Proximity Caves | Snuck into a huge 0b10 base via the rear entrance 12571 | -6/Proximity Caves | Core integrity fell below 50% 12667 | -6/Proximity Caves | Build established: Gunner 12947 | -6/Proximity Caves | Discovered exit to Factory (range 15) 12952 | -6/Proximity Caves | Fabricated Imp. Thermal Shield? 13361 | -6/Proximity Caves | Build established: Commander-Skirmisher 13667 | -6/Proximity Caves | Entered Factory 13667 | -6/Factory | Accompanied by 10 allies 13667 | -6/Factory | Evolved 2 slots: Utility x2 13668 | -6/Factory | Identified exit to Factory 13671 | -6/Factory | Loaded intel: 4 garrison access locations 13672 | -6/Factory | Identified exit to DSF 13672 | -6/Factory | Entered DSF 13672 | -6/DSF | Accompanied by 10 allies 13716 | -6/DSF | Additional patrols routed to DSF 13752 | -6/DSF | Lost 5 allies 13889 | -6/DSF | Sterilization system engaged 13909 | -6/DSF | Ambient heat levels rising (+10) 13924 | -6/DSF | Ambient heat levels rising (+10) 13939 | -6/DSF | Ambient heat levels rising (+10) 13952 | -6/DSF | Discovered exit to Factory (range 16) 13954 | -6/DSF | Ambient heat levels rising (+10) 13969 | -6/DSF | Ambient heat levels rising (+10) 13981 | -6/DSF | Entered Factory 13981 | -5/Factory | Accompanied by 5 allies 13981 | -5/Factory | Evolved 2 slots: Utility x1, Weapon x1 14107 | -5/Factory | Fabricated Hyp. Coil Gun? 14614 | -5/Factory | Discovered new exit (range 12) 14660 | -5/Factory | Identified exit to Upper Caves 14679 | -5/Factory | Entered Upper Caves 14679 | -5/Upper Caves | Accompanied by 5 allies 14685 | -5/Upper Caves | Met a Warlord Commander 14686 | -5/Upper Caves | Learned location of Warlord (-5) 14687 | -5/Upper Caves | Warlord Commander delivered Encrypted Comm Array 14691 | -5/Upper Caves | Found Encrypted Comm Array 14961 | -5/Upper Caves | Learned Factory emergency access door positions 15909 | -5/Upper Caves | Discovered new exit (range 14) 15928 | -5/Upper Caves | Identified exit to Upper Caves 15952 | -5/Upper Caves | Encountered a Warlord checkpoint 15985 | -5/Upper Caves | Found DCF Scrap (12 items) 16095 | -5/Upper Caves | Entered another Upper Caves area 16095 | -5/Upper Caves | Accompanied by 5 allies 16095 | -5/Upper Caves | Discovered new exit (range 2) 16097 | -5/Upper Caves | Identified exit to Factory 16363 | -5/Upper Caves | Lost 3 allies 16467 | -5/Upper Caves | Build established: Scavenger-Skirmisher 16511 | -5/Upper Caves | Learned location of 1 exit from Factory 16522 | -5/Upper Caves | Learned Factory security intel 17289 | -5/Upper Caves | Discovered new exit (range 9) 17406 | -5/Upper Caves | Identified exit to Warlord 17521 | -5/Upper Caves | Entered Warlord 17704 | -5/Warlord | Visited the Vortex Lab 17708 | -5/Warlord | Warlord's base attacked by MAIN.C 17710 | -5/Warlord | Found Prototype Energy Gun 17710 | -5/Warlord | Identified Vortex Shotgun 17714 | -5/Warlord | Found Vortex Shotgun 17720 | -5/Warlord | Found Prototype Energy Cannon 17723 | -5/Warlord | Found Prototype Energy Cannon 17724 | -5/Warlord | Identified Vortex Driver (x2) 17860 | -5/Warlord | Met Warlord 18058 | -5/Warlord | Warlord forces counterattacked 18061 | -5/Warlord | Opened side exit 18101 | -5/Warlord | Discovered new exit (range 10) 18131 | -5/Warlord | Spotted Striker 18135 | -5/Warlord | Destroyed Striker 18136 | -5/Warlord | Lost 5 allies 18142 | -5/Warlord | Destroyed HP-6Z5(g) 18144 | -5/Warlord | P-70 Sage assimilated allied QO-IKJ(g) 18159 | -5/Warlord | Destroyed 7 combat bots 18192 | -5/Warlord | Identified exit to Proximity Caves 18220 | -5/Warlord | Entered Proximity Caves 18243 | -4/Proximity Caves | Lost 4 allies 18527 | -4/Proximity Caves | Build established: Pyromaniac-Skirmisher 19182 | -4/Proximity Caves | Discovered exit to Factory (range 7) 19249 | -4/Proximity Caves | Entered Factory 19249 | -4/Factory | Evolved 2 slots: Propulsion x1, Utility x1 19250 | -4/Factory | Identified exit to Research 19488 | -4/Factory | Lost 4 parts (2n2w) 19504 | -4/Factory | Spotted B-86 Titan 19512 | -4/Factory | Destroyed B-86 Titan 19731 | -4/Factory | Fabricated Y-54 Guardian? 20101 | -4/Factory | Found Heavy Servo Lattice 20125 | -4/Factory | Garrison activated, responded to threat 20205 | -4/Factory | Destroyed 10 combat bots 20238 | -4/Factory | Build established: Gunner 20700 | -4/Factory | Discovered exit to Research (range 5) 20916 | -4/Factory | Discovered new exit (range 6) 20926 | -4/Factory | Entered Upper Caves 21344 | -4/Upper Caves | Learned Research emergency access door positions 21415 | -4/Upper Caves | Build established: Skirmisher 22127 | -4/Upper Caves | Discovered new exit (range 16) 22154 | -4/Upper Caves | Identified exit to Upper Caves 22330 | -4/Upper Caves | Entered another Upper Caves area 22675 | -4/Upper Caves | Entered a destroyed Warlord outpost 23100 | -4/Upper Caves | Learned location of 2 exits from Research 23394 | -4/Upper Caves | Discovered new exit (range 13) 23413 | -4/Upper Caves | Identified exit to Zhirov 23925 | -4/Upper Caves | Found Alien Artifact 23925 | -4/Upper Caves | Identified Dimensional Node Initializer 23925 | -4/Upper Caves | Initialized slip node 24099 | -4/Upper Caves | Entered Zhirov 24099 | -4/Zhirov | Discovered new exit (range 3) 24130 | -4/Zhirov | Met Zhirov 24160 | -4/Zhirov | Learned location of Testing (-3) 24160 | -4/Zhirov | Learned location of Command (-1) 24175 | -4/Zhirov | Zhirov requested help retrieving the SGEMP Prototype 24207 | -4/Zhirov | Found Alien Artifact 24207 | -4/Zhirov | Identified Integrated Dissipator 24207 | -4/Zhirov | Installed Integrated Dissipator, increased core heat dissipation (+20) 24229 | -4/Zhirov | Found Alien Artifact 24394 | -4/Zhirov | Identified exit to Proximity Caves 24396 | -4/Zhirov | Entered Proximity Caves 25463 | -3/Proximity Caves | Received a Behemoth hack from an annoying Tinkerer 25925 | -3/Proximity Caves | Destroyed 9 combat bots 26026 | -3/Proximity Caves | Discovered exit to Research (range 9) 26316 | -3/Proximity Caves | Entered Research 26316 | -3/Research | Evolved 2 slots: Utility x2 26317 | -3/Research | Identified exit to Armory 26318 | -3/Research | Identified exit to Research 26318 | -3/Research | Identified exit to Testing 26434 | -3/Research | Entered Armory 26465 | -3/Armory | Lost 5 parts (1n2u2w) 26628 | -3/Armory | Build established: Gunner 26877 | -3/Armory | Identified Transdimensional Reconstructor 26877 | -3/Armory | Warped through subspace to slip node 26877 | -3/Armory | Discovered new exit (range 1) 26877 | -3/Armory | Identified exit to Lab 26940 | -3/Armory | Build established: Tank 26955 | -3/Armory | Discovered exit to Research (range 8) 27023 | -3/Armory | Found Launcher Loader 27024 | -3/Armory | Lost 12 parts (1p4n4u3w) 27033 | -3/Armory | Found Fusion Bomb Launcher 27104 | -3/Armory | Core integrity fell below 50% 27109 | -3/Armory | Released all parts (4) 27127 | -3/Armory | Entered Lab 27127 | -3/Lab | Discovered exit to Research (range 9) 27133 | -3/Lab | Unable to decrypt terminal 27133 | -3/Lab | Opened the door to a hidden lab 27134 | -3/Lab | Gained access to the hidden lab's interior 27134 | -3/Lab | Detected by scanners 27137 | -3/Lab | Disabled Active System Cloaker 27140 | -3/Lab | Lost 3 parts (1p2w) 27142 | -3/Lab | Found Alien Artifact 27142 | -3/Lab | Identified Core Reset Matrix 27142 | -3/Lab | Used Core Reset Matrix 27146 | -3/Lab | Sensed 3 artifacts in vicinity 27157 | -3/Lab | Found Transdimensional Reconstructor 27170 | -3/Lab | Confronted by A5 27170 | -3/Lab | Found Integrated Dissipator 27170 | -3/Lab | Installed Integrated Dissipator, increased core heat dissipation (+20) 27180 | -3/Lab | Found Core Expander 27180 | -3/Lab | Installed Core Expander, added new Utility slot 27182 | -3/Lab | Core integrity fell below 20% 27189 | -3/Lab | Discovered exit to Research (range 7) 27193 | -3/Lab | Entered Research 27193 | -2/Research | Warlord forces began assault on 0b10 27193 | -2/Research | Evolved 2 slots: Propulsion x1, Utility x1 27209 | -2/Research | Found Prototype Launcher 27209 | -2/Research | Identified Point Singularity Launcher 27218 | -2/Research | Distinguished unit "Shockpunchers" dispatched to help 27245 | -2/Research | Spotted B-90 Cyclops 27303 | -2/Research | Research machine network offline 27557 | -2/Research | Met up with Warlord 27567 | -2/Research | Discovered new exit (range 14) 27572 | -2/Research | Identified exit to Access 27577 | -2/Research | Found Prototype Processor 27577 | -2/Research | Identified Exp. Signal Interpreter 27653 | -2/Research | Build established: Scavenger-Scout 27680 | -2/Research | Found Unknown Device 27680 | -2/Research | Identified Adv. Force Booster 27752 | -2/Research | Spotted Striker 27765 | -2/Research | Discovered new exit (range 15) 27768 | -2/Research | Identified exit to Quarantine 27775 | -2/Research | Entered Quarantine 27776 | -2/Quarantine | Detected hypermatrix surge 27776 | -2/Quarantine | Sensed 15 artifacts in vicinity 27783 | -2/Quarantine | Found Transdimensional Reconstructor 27785 | -2/Quarantine | Garrison activated, responded to threat 27825 | -2/Quarantine | Found Terrabomb 27834 | -2/Quarantine | Met incapacitated Sigix Warrior 27834 | -2/Quarantine | Lockdown squad dispatched 27841 | -2/Quarantine | Found Sigix Containment Pod 27898 | -2/Quarantine | Spotted Fortress 27914 | -2/Quarantine | Discovered new exit (range 6) 27914 | -2/Quarantine | Discovered new exit (range 7) 27915 | -2/Quarantine | Identified exit to Protoforge 27916 | -2/Quarantine | Identified exit to Section 7 27916 | -2/Quarantine | Entered Section 7 27917 | -2/Section 7 | Detected hypermatrix surge 27917 | -2/Section 7 | Sensed 20 artifacts in vicinity 27957 | -2/Section 7 | Found Microwarp Drive 27968 | -2/Section 7 | Found Integrated Reactor 27968 | -2/Section 7 | Installed Integrated Reactor, increased core energy generation (+10) 27982 | -2/Section 7 | Found Spacefold Activator 28008 | -2/Section 7 | Found Integrated Dissipator 28008 | -2/Section 7 | Installed Integrated Dissipator, increased core heat dissipation (+20) 28013 | -2/Section 7 | Spotted S7 Guard 28016 | -2/Section 7 | Intercept squad dispatched 28023 | -2/Section 7 | Spotted Tracker 28026 | -2/Section 7 | Spotted Alpha 7 28026 | -2/Section 7 | Spotted Alpha 7 28028 | -2/Section 7 | Spotted B-99 Colossus 28034 | -2/Section 7 | Spotted Tracker 28055 | -2/Section 7 | Warped through subspace 28055 | -2/Section 7 | Spotted Executioner 28055 | -2/Section 7 | Spotted Executioner 28056 | -2/Section 7 | Core integrity fell below 50% 28057 | -2/Section 7 | Spotted Striker 28057 | -2/Section 7 | Spotted Striker 28081 | -2/Section 7 | Found Drained L-Cannon 28083 | -2/Section 7 | Lost 7 parts (2p3n2u) 28093 | -2/Section 7 | Found Hpw. Transdimensional Reconstructor 28101 | -2/Section 7 | Found Terrabomb 28119 | -2/Section 7 | Used Terrabomb 28164 | -2/Section 7 | Found Sigix Sheargun 28165 | -2/Section 7 | Found Sigix Sheargun 28169 | -2/Section 7 | Spotted Striker 28169 | -2/Section 7 | Spotted Striker 28175 | -2/Section 7 | Warped through subspace 28183 | -2/Section 7 | Spotted Combat Programmer 28185 | -2/Section 7 | Warped through subspace 28195 | -2/Section 7 | Core integrity fell below 20% 28201 | -2/Section 7 | Destroyed by Alpha 7 with Multirail Last Messages --------------- 28191_ ALERT: Potential suspicious activity detected, Programmers report to Section 7 Zone 5W. 28191_ U-05 Engineer lays Concrete. 28191_ Imp. System Shield destroyed. 28191_ Critical hit (Burn: +37). 28192_ U-05 Engineer lays Concrete. 28194_ Penetrated by Slug. 28194_ K-01 Serf destroyed. 28194_ K-01 Serf collects debris. 28195_ Penetrated by Slug. 28195_ Slug penetrates Thrusters. 28195_ U-05 Engineer lays Concrete. 28196_ Sigix Sheargun destroyed. 28196_ U-05 Engineer lays Concrete. 28197_ Penetrated by Slug. 28197_ Slug penetrates K-01 Serf. 28198_ U-05 Engineer lays Concrete. 28199_ K-01 Serf collects debris. 28200_ U-05 Engineer lays Concrete. 28201_ K-01 Serf collects debris. Map ----- +----------------------------------------------------+ | """""" #??????? ??????? | | #?????" "??????? = | | #?????" "????"""" " | | #########?????" """""" ""?"" | | ^^ #???????" ????" / """" | | ^^ #???????" """"" " | | ^^ #???????" " " | | ##+##+####????" ? " "" | | # #????" ? """ " | | #""" #????" ? "" T " | | #""" = #???#" "??" " | | #""" #???# "??" ?"" | | #""" #???#" """" "" """ "" | | #""" #???#"" """ " | | #""" #???#""" " " "" """"""""" | | """ #???#""" """" " ""???????" | | #?###""" w "?" """ c"" "????????" | | # #### # """""" "????? | | / =% ""????? | | g/ 7 R ! "????? | | / k k " "?????? | | 7 " ???? | | ######+##### # " ?? | | #??????????###""" " ? | | #????????????#""" uu ? | | #????????????#""" @ ?? | | #????????????#"" ?? | | #????????????#" """"???" | | #????????????# """""""""""" ##??????? | | #????????????# """""""""""" #???????? | | #????????????#####################BB###?+????????? | | #????????????????????????????????????????????????? | | #????????????????????????????????????????????????? | | #????????????????????????????????????????????????? | | #??######????????????????????????????????????????? | | #? ?????????????????????????????????????????? | | #? """ ????????????????????????????????????????? | | # """ ????????????????????????????????????????? | | # """ #???????????????????????????????????????? | | + """ #???????????????????????????????????????? | | # """ #???????????????????????????????????????? | | # """ ????????????????????????????????????????? | | #? """ ????????????????????????????????????????? | | #? ?????????????????????????????????????????? | | ???######????????????????????????????????????????? | | ?????????????????????????????????????????????????? | | ?????????????????????????????????????????????????? | | ?????????????????????????????????????????????????? | | ?????????????????????????????????????????????????? | | ?????????????????????????????????????????????????? | +----------------------------------------------------+ Best States ------------- Heat Dissipation 154 Coolant Potential 65 Energy Generation 51 Energy Capacity 565 Matter Stores 300 Matter Capacity 300 Sight Range 16 Robot Scan Range 20 Terrain Scan Density 210 Jamming Range 12 Power Amplification 30 Additional Mass Support 16 Corruption Containment 12 Armor Coverage 400 Resistance: TH 30 Power Shielding 66 Weapon Cycling 20 Evasion (%) 73 Targeting Accuracy 12 Launcher Accuracy 40 Recoil Reduction 5 Matter Filtering 50 Particle Charging 15 Salvage Targeting 1 Offensive Hacking 42 Defensive Hacking 36 Authchip Count 4 Item Schematics ----------------- None Robot Schematics ------------------ None Fabricated ------------ Imp. Thermal Shield | x2 | -6/Proximity Caves | Preloaded Hyp. Coil Gun | x2 | -5/Factory | Authchip Y-54 Guardian | x2 | -4/Factory | Authchip Repaired ---------- Deuterium Engine | 21% | -8/Materials Arm. Treads | 60% | -8/Materials Imp. Deuterium Engine | 28% | -7/Factory Alien Tech Used ----------------- Dimensional Node Initializer Integrated Dissipator Transdimensional Reconstructor Core Reset Matrix Core Expander Microwarp Drive Integrated Reactor Drained L-Cannon Spacefold Activator Terrabomb Sigix Sheargun High-powered Transdimensional Reconstructor Achievements -------------- None Challenges ------------ None Game ------ Seed ProtonMicrowarpClaymores Manual? 0 Play Time 03:22:41 Cumulative 372.0 hours Start 2025.07.06 @ 15:06:17 End 2025.07.06 @ 18:53:55 Sessions 1 Manual Loads 0 Difficulty Rogue Special Mode None Game No. 250 Rogue 250 Adventurer 0 Explorer 0 Win Type - Total 27 Types 21/0/4/2/0/0/0/0/0/0 Lore% 90 Gallery% 81 Achievement% 67 Wizard Run 0 Options --------- Layout 0 ASCII 1 Keyboard 1 Movement Arrows Keybinds 0 Fullscreen 2 Font 18/Terminus Map View 76x50 Zoom Use 0% Tactical HUD 1 Map Filters NONE Filters NONE Steam 1 RUN: 217d30a0-8f8d-45fc-83a1-5dda5d137c95